bitfinex-derivatives/quotes_SOLF0:USTF0_20250625
["timestamp","ask_amount","ask_price","bid_price","bid_amount"]
[1750871827343,14.78587309,143.94,143.88,40.90700711]
[1750871827646,2.63839302,143.93,143.88,40.90700711]
[1750871827848,6.9439,143.94,143.88,40.90700711]
[1750871828052,7.84078591,143.93,143.91,6.9447]
[1750871828346,2.6383954,143.92,143.91,6.9447]
[1750871828548,2.6383954,143.92,143.9,6.9453]
[1750871828750,10.62722401,143.94,143.88,36.48]
[1750871828950,7.84193555,143.93,143.88,36.48]
[1750871829149,9.5836955,143.92,143.89,6.9458]
[1750871829339,2.63871555,143.91,143.89,6.9458]
[1750871829543,6.9451,143.92,143.89,6.9458]
[1750871829743,2.63875131,143.91,143.89,6.9458]
[1750871829951,6.9451,143.92,143.9,6.9456]
[1750871830149,2.63877076,143.91,143.9,6.9456]
[1750871830649,2.63877076,143.91,143.89,6.9458]
[1750871830850,6.9451,143.92,143.89,6.9458]
[1750871831054,2.63876999,143.91,143.89,6.9458]
[1750871831253,6.9451,143.92,143.89,6.9458]
[1750871831450,2.63877109,143.91,143.89,6.9458]
[1750871831643,6.9451,143.92,143.9,6.9456]
[1750871831844,2.63877072,143.91,143.9,6.9456]
[1750871833452,36.5,143.93,143.87,4.42700711]
[1750871833755,2.63871761,143.92,143.87,4.42700711]
[1750871833946,43.4443,143.93,143.91,6.9449]
[1750871834251,2.63893532,143.92,143.87,4.42700711]
[1750871834447,2.63893532,143.91,143.87,4.42700711]
[1750871834648,6.9447,143.92,143.87,4.42700711]
[1750871834849,2.63901252,143.91,143.87,4.42700711]
[1750871835049,6.9447,143.92,143.87,4.42700711]
[1750871835245,2.63901366,143.91,143.87,4.42700711]
[1750871835447,47.87140711,143.93,143.9,6.9454]
[1750871835645,2.63602252,143.92,143.86,2.2749]
[1750871835845,47.87140711,143.93,143.86,6.70190711]
[1750871836156,2.63624471,143.92,143.86,6.70190711]
[1750871836352,47.87140711,143.93,143.86,6.70190711]
[1750871836652,2.63624471,143.92,143.86,2.2749]
[1750871836859,47.87140711,143.93,143.86,6.70190711]
[1750871837059,2.63626849,143.92,143.91,6.9451]
[1750871837357,2.63626776,143.92,143.91,6.9451]
[1750871838955,2.63626776,143.92,143.9,6.9454]
[1750871839144,43.4443,143.93,143.9,6.9454]
[1750871839347,6.9453,143.91,143.86,2.2749]
[1750871840155,6.9453,143.91,143.88,6.9463]
[1750871840455,2.63624773,143.9,143.88,6.9463]
[1750871840755,6.9453,143.91,143.89,6.9461]
[1750871840959,2.63651193,143.9,143.89,6.9461]
[1750871842359,6.945,143.92,143.89,6.9461]
[1750871842559,2.63676357,143.91,143.89,6.9461]
[1750871842761,6.945,143.92,143.89,6.9461]
[1750871843058,6.9452,143.91,143.89,6.9461]
[1750871843359,2.63678781,143.9,143.89,6.9461]
[1750871843656,6.9459,143.9,143.88,6.9465]
[1750871844755,6.9454,143.91,143.88,6.9465]
[1750871844950,2.63681119,143.9,143.88,6.9465]
[1750871845151,40.92700711,143.93,143.88,6.9465]
[1750871845352,6.9457,143.9,143.88,6.9465]
[1750871846163,6.9454,143.91,143.89,6.946]
[1750871846356,40.92700711,143.93,143.86,2.2749]
[1750871846357,2.63757274,143.9,143.86,2.2749]
[1750871846555,40.92700711,143.93,143.86,6.70190711]
[1750871846755,7.82577053,143.92,143.91,6.9448]
[1750871846960,2.6376031,143.92,143.91,6.9448]
[1750871848959,6.9435,143.95,143.92,6.9443]
[1750871849267,18.37796984,143.94,143.92,6.9443]
[1750871849466,7.77305503,143.93,143.92,6.9443]
[1750871850761,2.63803022,143.93,143.92,6.9443]
[1750871850965,7.77497866,143.93,143.92,6.9443]
[1750871851266,2.63803022,143.93,143.92,6.9443]
[1750871851963,7.78813827,143.93,143.92,6.9443]
[1750871852167,7.7903035,143.93,143.92,6.9443]
[1750871852960,7.79021529,143.93,143.91,6.9449]
[1750871853160,2.63803022,143.92,143.89,36.52]
[1750871853472,2.64272102,143.91,143.89,36.52]
[1750871853654,4.42700711,143.93,143.89,36.52]
[1750871853860,6.9454,143.91,143.87,4.42700711]
[1750871854067,2.64291867,143.9,143.88,6.9464]
[1750871854258,6.9454,143.91,143.88,6.9464]
[1750871854462,2.64306922,143.9,143.88,6.9464]
[1750871854679,4.42700711,143.93,143.86,38.7749]
[1750871854873,18.44267658,143.92,143.86,38.7749]
[1750871855064,7.79645367,143.91,143.86,2.2749]
[1750871855266,4.42700711,143.89,143.83,38.9247]
[1750871855467,7.79645367,143.88,143.83,38.9247]
[1750871855764,2.64317151,143.87,143.85,6.9478]
[1750871855965,4.42700711,143.87,143.79,2.384]
[1750871856164,7.79142963,143.86,143.76,36.5]
[1750871856373,2.64271076,143.85,143.8,4.42700711]
[1750871856672,4.42700711,143.87,143.8,40.92700711]
[1750871856873,4.42700711,143.85,143.8,36.5]
[1750871857175,36.5,143.88,143.78,2.4247]
[1750871857176,4.42700711,143.83,143.78,2.4247]
[1750871857370,11.37630711,143.83,143.8,6.9502]
[1750871858276,4.42700711,143.83,143.78,2.4247]
[1750871858466,36.2,143.84,143.78,2.4247]
[1750871858666,6.9494,143.83,143.78,2.4247]
[1750871858978,4.42700711,143.82,143.77,38.6179]
[1750871859572,6.9502,143.81,143.78,6.9512]
[1750871859966,4.42700711,143.82,143.77,36.2]
[1750871860670,4.42700711,143.82,143.74,43.3012]
[1750871860874,4.42700711,143.8,143.74,43.3012]
[1750871861770,4.42700711,143.8,143.78,6.9512]
[1750871861974,4.42700711,143.8,143.74,43.3012]
[1750871862482,6.95,143.81,143.78,6.9512]
[1750871862678,4.42700711,143.82,143.75,4.42700711]
[1750871863165,4.42700711,143.82,143.78,6.9512]
[1750871863774,4.42700711,143.8,143.74,43.3012]
[1750871864178,4.42700711,143.78,143.73,0.85159]
[1750871864875,36.22,143.8,143.73,0.85159]
[1750871865080,36.22,143.8,143.73,5.27859711]
[1750871865270,36.22,143.8,143.74,36.22]
[1750871865778,36.22,143.8,143.75,4.42700711]
[1750871865979,4.42700711,143.82,143.77,6.9519]
[1750871866582,4.42700711,143.82,143.78,6.9514]
[1750871867175,6.9509,143.8,143.77,6.9519]
[1750871867379,12.14404064,143.86,143.75,6.88610711]
[1750871867380,40.64700711,143.84,143.75,6.88610711]
[1750871868074,6.9504,143.81,143.78,6.9512]
[1750871868274,40.66700711,143.86,143.75,2.4591]
[1750871868477,40.66700711,143.86,143.76,4.6589]
[1750871868778,6.9489,143.84,143.78,4.42700711]
[1750871869286,6.9489,143.84,143.8,6.9501]
[1750871869577,6.9489,143.84,143.78,4.42700711]
[1750871869778,36.24,143.86,143.84,6.9485]
[1750871869978,686.38,143.89,143.82,4.42700711]
[1750871870284,36.24,143.89,143.87,6.9471]
[1750871870489,36.24,143.89,143.84,4.42700711]
[1750871870875,43.1861,143.89,143.84,4.42700711]
[1750871871088,36.24,143.89,143.87,6.9471]
[1750871871580,42.93660711,143.92,143.84,4.42700711]
[1750871871786,42.93660711,143.92,143.84,8.96460711]
[1750871872395,6.9459,143.9,143.87,6.9468]
[1750871873687,6.9452,143.91,143.88,6.9463]
[1750871873885,38.5096,143.92,143.86,4.42700711]
[1750871874089,36.24,143.92,143.86,4.42700711]
[1750871874390,36.22,143.95,143.88,4.42700711]
[1750871874888,43.1636,143.95,143.91,6.9448]
[1750871875385,43.1636,143.95,143.92,6.9444]
[1750871875591,7.2429,143.96,143.9,4.42700711]
[1750871875783,0.3,143.96,143.9,4.42700711]
[1750871876185,6.9433,143.95,143.92,6.9444]
[1750871877193,6.9438,143.94,143.91,6.9451]
[1750871878097,6.9433,143.95,143.92,6.9446]
[1750871878290,0.3,143.96,143.9,4.42700711]
[1750871878695,0.3,143.96,143.92,6.9444]
[1750871879488,6.9435,143.95,143.92,6.9444]
[1750871879692,6.9435,143.95,143.93,6.9442]
[1750871879989,6.9435,143.95,143.9,4.42700711]
[1750871880391,0.3,143.96,143.9,4.42700711]
[1750871880591,0.3,143.96,143.92,4.42700711]
[1750871880893,0.3,143.96,143.9,4.42700711]
[1750871881091,0.3,143.96,143.89,38.6639]
[1750871881092,4.42700711,143.95,143.89,38.6639]
[1750871881391,6.9444,143.93,143.89,38.6639]
[1750871881796,6.9444,143.93,143.89,45.6098]
[1750871882205,6.9444,143.93,143.89,38.6639]
[1750871882394,6.9444,143.93,143.9,6.9456]
[1750871883200,6.9447,143.92,143.89,43.1659]
[1750871883791,6.9444,143.93,143.9,6.9456]
[1750871886998,4.42700711,143.95,143.9,6.9456]
[1750871886999,6.9447,143.92,143.9,6.9456]
[1750871887689,6.9444,143.93,143.9,6.9456]
[1750871888092,4.42700711,143.95,143.9,6.9456]
[1750871888403,6.9447,143.93,143.9,6.9456]
[1750871890199,0.3,143.96,143.86,41.3443]
[1750871890405,0.3,143.96,143.94,4.42700711]
[1750871890594,912.178958,144.04,143.94,36.44]
[1750871890795,4.42700711,144.02,143.95,7.316]
[1750871891302,4.42700711,144.0,143.95,4.8923]
[1750871891997,7.7353231,144.03,143.95,2.4752]
[1750871892205,4.42700711,144.01,143.95,2.4752]
[1750871892393,15.09737862,144.03,143.95,2.4752]
[1750871892698,7.36205552,144.01,143.94,36.44]
[1750871892900,36.42,144.0,143.94,36.44]
[1750871893099,6.9425,143.97,143.94,6.9435]
[1750871893897,7.36205552,143.99,143.93,6.944]
[1750871894201,7.36205552,143.97,143.91,2.4171]
[1750871894400,6.9438,143.94,143.9,36.42]
[1750871894797,36.42,143.96,143.9,36.42]
[1750871895002,6.9435,143.95,143.92,6.9442]
[1750871895294,36.42,143.96,143.9,36.42]
[1750871895502,9.61965552,143.98,143.9,36.42]
[1750871895696,9.61965552,143.98,143.94,6.9434]
[1750871895901,12.22516139,143.98,143.94,6.9434]
[1750871896092,9.61965552,143.98,143.94,6.9434]
[1750871896289,6.9426,143.97,143.94,6.9434]
[1750871897801,6.9426,143.97,143.95,6.9431]
[1750871897990,9.54750587,143.98,143.95,6.9431]
[1750871898195,6.942,143.98,143.95,6.9431]
[1750871899697,7.36205552,143.98,143.94,6.9435]
[1750871900201,6.9426,143.97,143.94,6.9435]
[1750871902111,6.942,143.98,143.9,43.78205552]
[1750871902598,43.3614,143.99,143.96,6.9424]
[1750871902793,43.3614,143.99,143.9,36.42]
[1750871902794,36.42,144.02,143.94,7.36205552]
[1750871902998,36.42,144.02,143.92,7.36205552]
[1750871903200,6.9411,144.0,143.97,6.942]
[1750871905909,7.36205552,144.01,143.94,36.42]
[1750871906203,6.942,143.98,143.94,36.42]
[1750871906406,6.942,143.98,143.95,6.943]
[1750871907294,6.9423,143.97,143.95,6.943]
[1750871908913,6.9423,143.97,143.94,6.9435]
[1750871909109,9.97139539,143.99,143.91,36.42]
[1750871909307,2.60933987,143.98,143.91,36.42]
[1750871909507,6.9423,143.97,143.94,6.9433]
[1750871910211,6.9423,143.97,143.95,6.9432]
[1750871910513,6.9428,143.96,143.91,36.42]
[1750871910707,7.75880836,143.98,143.91,36.42]
[1750871910911,6.9437,143.94,143.91,36.42]
[1750871911213,15.12086388,143.97,143.93,6.9438]
[1750871911405,7.77777252,143.96,143.93,6.9438]
[1750871911607,12.10696044,143.96,143.91,36.42]
[1750871912006,5.16396044,143.96,143.91,36.42]
[1750871912218,38.6797,143.98,143.91,36.42]
[1750871912408,2.62241668,143.97,143.95,6.9432]
[1750871912608,2.62241668,143.96,143.94,7.36205552]
[1750871913212,6.9411,144.0,143.94,7.36205552]
[1750871913612,6.9411,144.0,143.97,6.942]
[1750871916613,6.9411,144.0,143.98,6.9417]
[1750871916913,36.42,144.01,143.94,7.36205552]
[1750871917112,36.42,144.01,143.95,36.42]
[1750871917307,36.42,144.01,144.0,6.9408]
[1750871917516,915.04380641,144.04,144.0,6.9408]
[1750871917713,5.97194903,144.03,144.0,6.9408]
[1750871917915,6.9396,144.03,144.01,6.9403]
[1750871918316,5.97378341,144.02,143.97,4.41533264]
[1750871918613,6.9396,144.03,144.0,6.9406]
[1750871918923,6.9386,144.05,143.99,4.41533264]
[1750871919217,5.97191175,144.04,144.02,6.9397]
[1750871919417,6.9386,144.05,144.02,6.9397]
[1750871919623,5.97047805,144.04,144.03,6.9394]
[1750871919814,5.97019499,144.06,143.99,4.41533264]
[1750871920120,43.5178,144.07,144.04,6.9386]
[1750871920515,36.58,144.07,144.0,7.35530341]
[1750871920717,6.938,144.06,144.03,6.939]
[1750871922226,6.938,144.06,144.04,6.9389]
[1750871922427,43.5176,144.07,144.04,6.9389]
[1750871923031,6.938,144.06,144.03,6.9392]
[1750871923522,6.9384,144.05,144.03,6.9392]
[1750871923730,36.58,144.07,143.99,36.58]
[1750871923923,43.93530341,144.07,143.99,36.58]
[1750871924227,7.35530341,144.05,143.95,51.21630341]
[1750871924614,6.9406,144.01,143.95,43.861]
[1750871924815,36.58,144.02,143.97,6.942]
[1750871925233,36.58,144.02,143.95,36.58]
[1750871925428,36.58,144.02,143.96,6.9425]
[1750871925821,6.9417,143.99,143.96,6.9425]
[1750871926525,7.35530341,144.01,143.95,6.943]
[1750871927029,7.35530341,144.01,143.92,686.32]
[1750871927237,6.9424,143.97,143.94,6.9434]
[1750871927434,7.35530341,143.99,143.92,36.58]
[1750871927739,36.58,143.98,143.92,36.58]
[1750871927941,6.943,143.96,143.93,6.944]
[1750871928139,36.58,143.98,143.9,7.1143]
[1750871928336,38.9733,143.98,143.9,7.1143]
[1750871928544,44.1751949,143.98,143.9,7.1143]
[1750871928742,6.9435,143.95,143.92,6.9444]
[1750871928941,2.63734678,143.97,143.92,6.9444]
[1750871929244,6.9423,143.97,143.92,6.9444]
[1750871929442,6.9423,143.97,143.93,6.9442]
[1750871930747,51.11882827,143.98,143.94,6.9436]
[1750871930945,2.63836888,143.97,143.94,6.9436]
[1750871931146,51.11984606,143.98,143.94,6.9436]
[1750871931348,2.62370808,143.97,143.94,6.9436]
[1750871931546,38.9733,143.98,143.94,6.9436]
[1750871931743,2.62421653,143.97,143.94,6.9436]
[1750871931945,38.9733,143.98,143.94,6.9436]
[1750871932143,38.9733,143.98,143.9,7.1143]
[1750871932144,9.97951994,143.97,143.9,7.1143]
[1750871932343,7.79473423,143.96,143.9,4.8517]
[1750871932646,9.56751653,143.95,143.92,6.9442]
[1750871932853,6.9433,143.95,143.92,6.9442]
[1750871933649,12.11375623,143.96,143.93,6.9441]
[1750871933845,7.79542899,143.95,143.93,6.9441]
[1750871934043,5.17075623,143.95,143.93,6.9441]
[1750871934547,6.943,143.96,143.93,6.9441]
[1750871934738,7.79490947,143.95,143.93,6.9441]
[1750871934943,2.62449784,143.94,143.93,6.9441]
[1750871935153,2.62451763,143.94,143.93,6.9441]
[1750871935649,6.943,143.96,143.93,6.9441]
[1750871935850,2.62415751,143.95,143.93,6.9441]
[1750871936053,6.943,143.96,143.93,6.9441]
[1750871936255,2.62017977,143.95,143.93,6.9441]
[1750871936452,6.943,143.96,143.93,6.9441]
[1750871936651,2.62012499,143.95,143.93,6.9441]
[1750871936952,6.943,143.96,143.94,6.9436]
[1750871937541,2.62004624,143.95,143.94,6.9436]
[1750871937741,6.9433,143.95,143.93,6.944]
[1750871938049,7.35530341,143.97,143.93,6.944]
[1750871938250,2.61978913,143.96,143.94,6.9436]
[1750871938443,7.35530341,143.97,143.94,6.9436]
[1750871938643,2.61990765,143.96,143.94,6.9436]
[1750871938843,7.35530341,143.97,143.94,6.9436]
[1750871939141,2.61988781,143.96,143.94,6.9436]
[1750871939336,6.943,143.96,143.94,6.9436]
[1750871940550,38.9733,143.98,143.9,9.74540341]
[1750871940759,36.58,143.98,143.92,7.35530341]
[1750871940949,36.58,143.98,143.92,43.93530341]
[1750871941153,5.155619,143.99,143.92,43.93530341]
[1750871941357,41.73539369,144.01,143.94,7.35530341]
[1750871941553,36.58,144.01,143.94,7.35530341]
[1750871941858,36.58,144.01,144.0,6.9408]
[1750871942946,5.15415937,144.03,143.97,4.41567081]
[1750871943149,2.62017999,144.02,143.97,4.41567081]
[1750871943352,12.09385937,144.03,143.97,4.41567081]
[1750871943641,2.62009277,144.02,143.97,4.41567081]
[1750871943842,12.09385937,144.03,144.0,6.9406]
[1750871944049,2.62009277,144.02,144.0,6.9406]
[1750871944251,6.9397,144.03,144.0,6.9406]
[1750871944853,40.99567081,144.04,144.0,6.9406]
[1750871945057,2.62002848,144.03,144.0,6.9406]
[1750871945257,40.99567081,144.04,144.01,6.9403]
[1750871945551,2.61998147,144.03,144.01,6.9403]
[1750871945855,6.9396,144.03,144.01,6.9403]
[1750871946057,41.74218491,144.04,144.01,6.9403]
[1750871946257,2.61976517,144.03,144.01,6.9403]
[1750871946448,36.58,144.04,144.01,6.9403]
[1750871946650,2.61962681,144.03,144.01,6.9403]
[1750871946848,43.5191,144.04,144.02,6.9398]
[1750871947157,36.58,144.04,143.99,4.41567081]
[1750871947652,36.58,144.04,144.03,6.9394]
[1750871947957,6.84947081,144.07,144.02,6.9394]
[1750871947958,43.18947081,144.07,144.02,6.9394]
[1750871948558,6.9385,144.05,144.02,6.9394]
[1750871948759,6.9385,144.05,144.03,6.9394]
[1750871948946,6.9385,144.05,143.99,4.41567081]
[1750871949259,6.9385,144.05,144.02,6.9397]
[1750871949749,6.9389,144.04,144.02,6.9397]
[1750871949951,43.18947081,144.07,144.02,6.9397]
[1750871950152,43.18947081,144.07,144.03,6.9394]
[1750871950962,6.9384,144.06,144.04,6.9389]
[1750871951456,6.9384,144.06,144.01,4.41567081]
[1750871951663,6.9384,144.05,144.02,6.9394]
[1750871951853,40.75567081,144.07,143.99,4.41567081]
[1750871952054,6.9386,144.05,144.02,6.9396]
[1750871952359,40.75567081,144.07,143.99,4.41567081]
[1750871952554,6.9383,144.06,144.03,6.9394]
[1750871955068,6.9385,144.05,144.02,6.9397]
[1750871955565,6.9385,144.05,144.0,38.6332]
[1750871956363,6.9385,144.05,144.02,6.9396]
[1750871957262,6.9385,144.05,144.03,6.9394]
[1750871957968,6.9385,144.05,144.02,6.9397]
[1750871958769,4.41567081,144.05,143.97,43.22927081]
[1750871959466,6.9394,144.03,144.0,6.9405]
[1750871960266,6.9399,144.02,143.99,6.9411]
[1750871960984,6.9404,144.01,143.98,6.9415]
[1750871961770,6.9404,144.01,143.99,6.9412]
[1750871964366,6.9398,144.03,144.0,6.9406]
[1750871964757,6.9398,144.03,143.97,43.22927081]
[1750871965165,6.9391,144.04,143.97,43.22927081]
[1750871965571,6.9391,144.04,144.01,6.94]
[1750871966275,6.9395,144.03,144.01,6.94]
[1750871966459,7.03229942,144.05,143.97,43.22927081]
[1750871966773,7.03235329,144.05,143.97,43.22927081]
[1750871966970,6.9401,144.02,143.99,6.941]
[1750871967175,4.41567081,144.03,143.97,43.22927081]
[1750871967480,4.41567081,144.03,143.97,38.8136]
[1750871967664,6.9407,144.01,143.98,6.9415]
[1750871968875,6.9407,144.01,143.97,38.8136]
[1750871969181,4.41567081,144.05,143.97,43.22927081]
[1750871969674,6.9393,144.04,143.97,43.22927081]
[1750871969864,4.41567081,144.05,143.97,43.22927081]
[1750871970261,6.9396,144.03,143.97,43.22927081]
[1750871970468,36.34,144.06,143.99,4.41567081]
[1750871971481,6.9391,144.04,144.02,6.9398]
[1750871971670,36.34,144.06,144.02,6.9398]
[1750871971870,36.34,144.06,144.01,4.41567081]
[1750871972071,36.34,144.06,144.03,6.9391]
[1750871972580,6.9382,144.06,144.04,6.9388]
[1750871972776,6.9382,144.06,144.01,6.84967081]
[1750871973981,6.9377,144.07,144.04,6.9388]
[1750871975285,6.938,144.06,144.04,6.9388]
[1750871979388,6.938,144.06,144.03,6.9391]
[1750871979779,6.938,144.06,144.01,43.18967081]
[1750871980286,36.34,144.09,144.01,43.18967081]
[1750871980484,38.96201772,144.09,144.03,4.41567081]
[1750871980890,6.9374,144.08,144.05,6.9381]
[1750871981778,43.2767,144.09,144.04,4.41567081]
[1750871981975,36.34,144.09,144.04,4.41567081]
[1750871982187,2.62569822,144.1,144.04,4.41567081]
[1750871982484,6.9362,144.1,144.06,4.41567081]
[1750871983090,40.45567081,144.12,144.06,4.41567081]
[1750871983293,2.62702824,144.11,144.06,4.41567081]
[1750871983581,6.9362,144.1,144.06,4.41567081]
[1750871983991,6.9362,144.1,144.06,11.35347081]
[1750871984387,6.9367,144.09,144.06,11.35347081]
[1750871985087,45.05290257,144.12,144.05,36.04]
[1750871985293,4.41567081,144.1,144.05,36.04]
[1750871985692,4.41567081,144.1,144.05,42.9783]
[1750871985991,2.63112941,144.09,144.05,42.9783]
[1750871986292,2.63201478,144.08,144.05,42.9783]
[1750871986502,4.41567081,144.1,144.05,42.9782]
[1750871986790,7.79367907,144.09,144.05,42.9782]
[1750871986991,2.6314656,144.08,144.05,36.04]
[1750871987186,5.16202769,144.1,144.05,36.04]
[1750871987393,40.45567081,144.12,144.05,36.04]
[1750871987595,7.81638964,144.11,144.05,36.04]
[1750871987792,2.63159262,144.1,144.07,6.9373]
[1750871988093,6.9365,144.1,144.07,6.9373]
[1750871988887,6.9365,144.1,144.06,4.41567081]
[1750871989386,6.9365,144.1,144.07,6.9372]
[1750871989586,6.9366,144.09,144.07,6.9372]
[1750871990295,6.9362,144.1,144.07,6.9372]
[1750871991002,6.9357,144.11,144.06,4.41567081]
[1750871991699,6.9357,144.11,144.08,6.9367]
[1750871992103,6.9357,144.11,144.06,4.41567081]
[1750871992804,6.9357,144.11,144.08,6.9367]
[1750871994705,6.9357,144.11,144.09,6.9364]
[1750871996011,6.9353,144.12,144.05,36.04]
[1750871996209,4.41567081,144.12,144.05,36.04]
[1750871997002,36.04,144.11,144.05,36.04]
[1750871997413,36.04,144.11,144.05,40.45567081]
[1750871997705,6.9364,144.1,144.07,6.9371]
[1750871998200,36.04,144.11,144.06,6.9377]
[1750871998698,6.937,144.08,144.06,6.9377]
[1750871998899,36.04,144.11,144.05,40.45567081]
[1750871999099,36.04,144.11,144.07,6.9374]
[1750872000407,6.9363,144.1,144.07,6.9374]
[1750872000614,36.04,144.11,144.05,40.45567081]
[1750872001116,6.9363,144.1,144.05,40.45567081]
[1750872001306,6.9363,144.1,144.08,6.9368]
[1750872002004,42.9758,144.11,144.08,6.9368]
[1750872002199,6.9358,144.11,144.09,6.9365]
[1750872002410,10.1276696,144.13,144.05,40.45567081]
[1750872002604,5.71199879,144.13,144.07,4.41567081]
[1750872002906,5.71199879,144.13,144.11,6.9351]
[1750872003108,12.64659879,144.13,144.09,4.41567081]
[1750872003511,6.9358,144.11,144.07,4.6351]
[1750872004014,6.9358,144.11,144.08,6.9367]
[1750872004216,6.936,144.1,144.07,4.6351]
[1750872004806,6.9366,144.09,144.05,36.04]
[1750872005017,6.9366,144.09,144.06,6.9376]
[1750872005203,6.9372,144.08,144.05,36.04]
[1750872005715,11.35237081,144.09,144.05,36.04]
[1750872005909,40.45567081,144.11,144.05,36.04]
[1750872006109,40.45567081,144.11,144.07,6.9372]
[1750872006309,6.9364,144.1,144.07,6.9372]
[1750872006511,40.45567081,144.11,144.05,36.04]
[1750872006707,4.41567081,144.1,144.06,6.9377]
[1750872006915,6.9367,144.09,144.05,36.04]
[1750872007311,6.9367,144.09,144.07,6.9372]
[1750872007819,6.9367,144.09,144.06,6.9377]
[1750872008712,36.04,144.11,144.08,6.9369]
[1750872009419,42.9757,144.11,144.09,6.9363]
[1750872009917,36.04,144.11,144.09,6.9363]
[1750872010112,36.04,144.11,144.1,6.936]
[1750872010411,38.67850171,144.11,144.1,6.936]
[1750872010611,38.67850171,144.11,144.05,40.45567081]
[1750872010612,38.67850171,144.11,144.09,6.9362]
[1750872010815,36.04,144.11,144.09,6.9362]
[1750872011218,36.04,144.11,144.05,40.45567081]
[1750872011417,5.71199879,144.13,144.07,4.41567081]
[1750872011609,5.71199879,144.13,144.09,4.41567081]
[1750872011815,2.63184142,144.17,144.12,4.41567081]
[1750872012012,4.60022062,144.22,144.15,4.41567081]
[1750872012221,12.41406455,144.21,144.19,6.9314]
[1750872012421,7.81384393,144.2,144.17,4.41567081]
[1750872012724,4.60280886,144.22,144.19,6.9314]
[1750872012924,7.81260611,144.21,144.16,4.41567081]
[1750872013123,2.63206569,144.2,144.15,36.02]
[1750872013419,11.53329652,144.22,144.15,40.43567081]
[1750872013611,7.81274814,144.21,144.15,40.43567081]
[1750872013809,36.02,144.23,144.21,6.9307]
[1750872014008,2.63170359,144.22,144.21,6.9307]
[1750872014315,36.02,144.27,144.21,6.9307]
[1750872014609,9.55977369,144.26,144.22,6.9302]
[1750872014816,6.9286,144.26,144.22,6.9302]
[1750872015012,36.02,144.27,144.22,6.9302]
[1750872015217,36.02,144.27,144.2,4.41567081]
[1750872015516,4.8162,144.28,144.19,36.02]
[1750872015517,6.9273,144.29,144.22,4.41567081]
[1750872015728,6.9273,144.29,144.23,36.02]
[1750872016111,6.9273,144.29,144.24,6.9291]
[1750872016317,36.02,144.3,144.24,4.41567081]
[1750872016822,9.5333814,144.31,144.24,9.21407081]
[1750872017014,5.99273917,144.35,144.24,9.21407081]
[1750872017015,5.6405988,144.39,144.24,9.21407081]
[1750872017214,6.9255,144.32,144.25,2.2933]
[1750872017409,6.9255,144.32,144.26,4.41567081]
[1750872017614,4.41567081,144.35,144.27,36.02]
[1750872017813,17.66933088,144.37,144.28,4.41567081]
[1750872018024,17.66933088,144.37,144.27,36.02]
[1750872018025,2.2943,144.38,144.32,4.41567081]
[1750872018226,6.9213,144.41,144.34,4.41567081]
[1750872018418,5.09025302,144.42,144.33,7.0701]
[1750872018616,4.54146356,144.45,144.33,7.0701]
[1750872018617,9.63171658,144.45,144.37,4.41567081]
[1750872018926,4.41567081,144.41,144.33,7.0701]
[1750872019114,8.29302003,144.47,144.3,648.88]
[1750872019115,10.05626961,144.39,144.3,690.91567081]
[1750872019422,10.05626961,144.39,144.32,4.41567081]
[1750872019628,5.6405988,144.39,144.34,4.41567081]
[1750872019925,5.6405988,144.39,144.34,37.62]
[1750872020520,5.6405988,144.39,144.35,7.31981083]
[1750872021220,5.6405988,144.39,144.34,37.62]
[1750872021419,5.6405988,144.39,144.34,44.93981083]
[1750872022927,5.6405988,144.39,144.36,7.31981083]
[1750872023115,5.6405988,144.39,144.34,37.62]
[1750872023516,12.96040963,144.39,144.32,141.12]
[1750872023722,5.6405988,144.39,144.32,141.12]
[1750872023918,6.9234,144.37,144.32,148.0453]